fUST/lending_fUST_20251202
["ID","MTS","AMOUNT","RATE_DAILY","PERIOD"]
[395362206,1764659893332,-1000.0,0.000448,120]
[395362207,1764659893368,-1000.0,0.000448,120]
[395362208,1764659893403,-1000.0,0.000448,120]
[395362209,1764659893439,-1000.0,0.000448,120]
[395362210,1764659893478,-58340.20526488,0.000449,120]
[395362211,1764659893513,-2000.0,0.000449,120]
[395362212,1764659893548,-1053.20859713,0.000449,120]
[395362213,1764659893583,-5181.86,0.00044931,120]
[395362214,1764659893616,-1010.1520922,0.00045,120]
[395362215,1764659893649,-400.0,0.00045,120]
[395362216,1764659893681,-494.27332657,0.00045,120]
[395362217,1764659893714,-505.08622922,0.00045,120]
[395362218,1764659893747,-212.76162897,0.00045,90]
[395362219,1764659893780,-201.39987815,0.00045,120]
[395362220,1764659893813,-4498.82780657,0.00045,120]
[395362221,1764659893852,-7965.04105457,0.00045,30]
[395362222,1764659893891,-500.0,0.00045,120]
[395362223,1764659893928,-630.75050967,0.00045,120]
[395362224,1764659894114,-656.05185472,0.00045,120]
[395362225,1764659894149,-845.28903553,0.00045,120]
[395362226,1764659894184,-531.0,0.00045,120]
[395362227,1764659894219,-5106.83229755,0.00045,120]
[395362228,1764659894255,-5000.0,0.00045,45]
[395362229,1764659894289,-1323.48220718,0.00045,120]
[395362230,1764659894326,-500.0,0.00045,120]
[395362231,1764659894363,-559.03129722,0.00045,120]
[395362232,1764659894398,-813.79,0.00045,30]
[395362233,1764659894435,-2776.74,0.00045,14]
[395362234,1764659894471,-3775.44,0.00045,30]
[395362235,1764659894507,-554.82,0.00045,30]
[395362236,1764659894542,-171.9,0.00045,30]
[395362237,1764659894577,-152.0,0.000452,120]
[395362238,1764659894611,-1744.269997,0.00045205,120]
[395362239,1764659894644,-828.66904201,0.00045255,120]
[395362240,1764659894677,-200.0,0.00045299,120]
[395362241,1764659894709,-200.0,0.00045299,120]
[395362242,1764659894741,-203.70947732,0.00045299,120]
[395362243,1764659894773,-611.05596572,0.000454,120]
[395362244,1764659894810,-851912.6008,0.0004544,30]
[395362245,1764659894848,-1807450.08434042,0.00045444,30]
[395362246,1764659899992,-631.9,0.00023056,15]
[395362247,1764659900047,-2848.35,0.00032877,10]
[395362248,1764659900111,-869.42001893,0.00038099,42]
[395362249,1764659900145,-1354944.48205958,0.00045444,30]
[395362250,1764659900176,-3000.0,0.00045448,60]
[395362251,1764659900209,-698.53,0.00045479,30]
[395362252,1764659900241,-500.0,0.00045479,120]
[395362253,1764659900273,-500.0,0.00045479,120]
[395362254,1764659900304,-500.0,0.00045479,120]
[395362255,1764659900334,-500.0,0.00045479,120]
[395362256,1764659900365,-500.0,0.00045479,120]
[395362257,1764659900396,-500.0,0.00045479,120]
[395362258,1764659900425,-500.0,0.00045479,120]
[395362259,1764659900454,-500.0,0.00045479,120]
[395362260,1764659900485,-527.08522731,0.00045479,120]
[395362261,1764659900516,-500.0,0.000455,120]
[395362262,1764659900544,-4771.16122343,0.00045556,30]
[395362263,1764659900574,-274.8170526,0.000458,120]
[395362264,1764659900605,-152.0,0.000458,120]
[395362265,1764659900635,-1395.84444336,0.000459,120]
[395362266,1764659900664,-300.0,0.00046,120]
[395362267,1764659900692,-1549.05,0.00046,120]
[395362268,1764659900722,-1112.41305257,0.00046,120]
[395362269,1764659900759,-5035.6,0.00046,120]
[395362270,1764659900793,-500.0,0.00046,120]
[395362271,1764659900826,-51376.28384903,0.00046,30]
[395362272,1764659900856,-6000.0,0.00046,30]
[395362273,1764659900889,-5181.86,0.00046027,120]
[395362274,1764659900921,-698.53,0.00046383,30]
[395362275,1764659900952,-152.0,0.000465,120]
[395362276,1764659900982,-3000.0,0.00046544,60]
[395362277,1764659901011,-2000.0,0.000469,120]
[395362278,1764659901040,-400.0,0.00047,120]
[395362279,1764659901070,-386.0,0.00047,120]
[395362280,1764659901098,-4074.77,0.00047,14]
[395362281,1764659901129,-206.0,0.0004703,73]
[395362282,1764659901158,-152.0,0.000471,120]
[395362283,1764659901191,-5181.86,0.00047123,120]
[395362284,1764659901222,-813.79,0.0004725,30]
[395362285,1764659901253,-3775.44,0.0004725,30]
[395362286,1764659901282,-554.82,0.0004725,30]
[395362287,1764659901312,-171.9,0.0004725,30]
[395362288,1764659901343,-698.53,0.00047287,30]
[395362289,1764659901377,-774466.0008,0.0004744,30]
[395362290,1764659901410,-757599.56227319,0.00047444,30]
[395362291,1764659917128,-605.51383,0.00023056,15]
[395362292,1764659917184,-2373.63,0.00032877,10]
[395362293,1764659917255,-1997020.85617,0.00043444,30]
[395362294,1764659920040,-579.60176,0.00023056,15]
[395362295,1764659920127,-1955972.35183,0.00043444,30]
[395362296,1764659920160,-800.0,0.00044955,14]
[395362297,1764659920191,-42648.04641,0.00045444,30]
[395362298,1764659922744,-1978.02,0.00032877,10]
[395362299,1764659922830,-1998021.98,0.00045444,30]
[395362300,1764659925899,-1121724.53999,0.00045444,30]
[395362301,1764659925933,-3667.3,0.00047,14]
[395362302,1764659925965,-874608.16001,0.00047444,30]
[395362303,1764659936008,-555.06823,0.00023056,15]
[395362304,1764659936060,-1648.35,0.00032877,10]
[395362305,1764659936127,-1997796.58177,0.00047444,30]
[395362306,1764659939279,-532.0,0.00023056,15]
[395362307,1764659939368,-289989.82462,0.00047444,30]
[395362308,1764659939401,-200.0,0.000475,120]
[395362309,1764659939433,-3000.0,0.0004764,60]
[395362310,1764659939464,-179.80221756,0.0004765,36]
[395362311,1764659939495,-152.0,0.000477,120]
[395362312,1764659939527,-200.0,0.000479,30]
[395362313,1764659939557,-10876.68,0.000479,120]
[395362314,1764659939588,-300.0,0.00048,120]
[395362315,1764659939617,-1000.0,0.00048,120]
[395362316,1764659939648,-9782.0,0.00048,120]
[395362317,1764659939679,-644.86538644,0.00048,120]
[395362318,1764659939710,-188.0,0.00048,60]
[395362319,1764659939741,-3686.3,0.00048,14]
[395362320,1764659939771,-3060.0,0.00048,120]
[395362321,1764659939803,-698.53,0.00048191,30]
[395362322,1764659939836,-5181.86,0.00048219,120]
[395362323,1764659939869,-5662.96155263,0.00048398,120]
[395362324,1764659939904,-152.0,0.000484,120]
[395362325,1764659939938,-1308.6,0.00048493,120]
[395362326,1764659939974,-800.0,0.000485,120]
[395362327,1764659940007,-5101.03711492,0.0004862,120]
[395362328,1764659940038,-642.66296445,0.000487,120]
[395362329,1764659940070,-3090.01922912,0.00048736,60]
[395362330,1764659940105,-1000.0,0.000488,120]
[395362331,1764659940141,-1000.0,0.000488,120]
[395362332,1764659940176,-1000.0,0.000488,120]
[395362333,1764659940211,-1000.0,0.000488,120]
[395362334,1764659940242,-1000.0,0.000488,120]
[395362335,1764659940274,-1000.0,0.000488,120]
[395362336,1764659940308,-8317.1970785,0.00048875,60]
[395362337,1764659940342,-773.01,0.00048887,90]
[395362338,1764659940377,-1265.64710661,0.000489,120]
[395362339,1764659940411,-2000.0,0.000489,120]
[395362340,1764659940442,-761.45454229,0.00048999,14]
[395362341,1764659940473,-314.83122253,0.00049,15]
[395362342,1764659940504,-955.3386,0.00049,30]
[395362343,1764659940534,-800.0,0.00049,120]
[395362344,1764659940564,-400.0,0.00049,120]
[395362345,1764659940593,-152.0,0.00049,120]
[395362346,1764659940624,-698.53,0.00049095,30]
[395362347,1764659940654,-5181.86,0.00049315,120]
[395362348,1764659940683,-120611.5345832,0.0004943,120]
[395362349,1764659940713,-688414.2229,0.0004944,30]
[395362350,1764659940743,-816925.23088175,0.00049444,30]
[395362351,1764659951595,-510.745,0.00023056,15]
[395362352,1764659951646,-381.686784,0.00028767,60]
[395362353,1764659951692,-1373.63,0.00032877,10]
[395362354,1764659951731,-1320.59927979,0.000332,117]
[395362355,1764659951767,-11127.0,0.00034073,60]
[395362356,1764659951841,-200.0,0.00049443,30]
[395362357,1764659951878,-207.4,0.00049443,30]
[395362358,1764659951914,-215.0738,0.00049443,30]
[395362359,1764659951950,-223.0315306,0.00049443,30]
[395362360,1764659951985,-231.28369723,0.00049443,30]
[395362361,1764659952020,-277.82895308,0.00049443,30]
[395362362,1764659952057,-239.84119403,0.00049443,30]
[395362363,1764659952094,-248.71531821,0.00049443,30]
[395362364,1764659952130,-2345469.33551825,0.00049444,30]
[395362365,1764659952167,-800.0,0.000495,120]
[395362366,1764659952204,-1716.44151943,0.000495,120]
[395362367,1764659952241,-152.0,0.000496,120]
[395362368,1764659952280,-813.79,0.00049613,30]
[395362369,1764659952317,-3775.44,0.00049613,30]
[395362370,1764659952355,-554.82,0.00049613,30]
[395362371,1764659952391,-171.9,0.00049613,30]
[395362372,1764659952427,-2706.07,0.000498,120]
[395362373,1764659952461,-206.0,0.0004984,80]
[395362374,1764659952496,-252.51250877,0.00049895,120]
[395362375,1764659952532,-800.0,0.000499,120]
[395362376,1764659952565,-536.51887784,0.0005,10]
[395362377,1764659952616,-300.0,0.0005,120]
[395362378,1764659952655,-506.76509602,0.0005,10]
[395362379,1764659952692,-705.0,0.0005,120]
[395362380,1764659952728,-223.11109544,0.0005,20]
[395362381,1764659952763,-555.04403235,0.0005,120]
[395362382,1764659952800,-4498.82780657,0.0005,120]
[395362383,1764659952836,-3213.68373,0.0005,120]
[395362384,1764659952871,-300.0,0.0005,120]
[395362385,1764659952905,-762.71418032,0.0005,120]
[395362386,1764659952941,-221.12441654,0.0005,120]
[395362387,1764659952977,-495.58404893,0.0005,120]
[395362388,1764659953012,-155.63793555,0.0005,120]
[395362389,1764659953050,-100466.589999,0.0005,30]
[395362390,1764659953087,-41318.34436226,0.0005,30]
[395362391,1764659953125,-16103.82697988,0.0005,120]
[395362392,1764659953164,-8000.0,0.0005,120]
[395362393,1764659953203,-800.0,0.0005,30]
[395362394,1764659953243,-1000.0,0.0005,120]
[395362395,1764659953295,-10000.0,0.0005,30]
[395362396,1764659953348,-251397.0,0.0005,120]
[395362397,1764659953396,-768.0,0.0005,120]
[395362398,1764659953440,-2393.8211945,0.0005,120]
[395362399,1764659953482,-523.91361321,0.0005,120]
[395362400,1764659953526,-7817.49627164,0.0005,120]
[395362401,1764659953568,-19680.32832858,0.0005,120]
[395362402,1764659953611,-698.53,0.0005,30]
[395362403,1764659953657,-3000.0,0.000502,120]
[395362404,1764659953701,-152.0,0.000503,120]
[395362405,1764659953745,-5181.86,0.0005041,120]
[395362406,1764659953787,-800.0,0.000505,120]
[395362407,1764659953832,-800.0,0.000509,120]
[395362408,1764659953880,-2000.0,0.000509,120]
[395362409,1764659953921,-152.0,0.000509,120]
[395362410,1764659953964,-698.53,0.00050904,30]
[395362411,1764659954007,-1000.0,0.00050999,120]
[395362412,1764659954049,-800.0,0.00051,120]
[395362413,1764659954088,-400.0,0.00051,120]
[395362414,1764659954133,-3000.0,0.00051,85]
[395362415,1764659954173,-3000.0,0.0005101,85]
[395362416,1764659954216,-3000.0,0.0005102,85]
[395362417,1764659954258,-3000.0,0.0005103,85]
[395362418,1764659954300,-3000.0,0.0005104,85]
[395362419,1764659954341,-3000.0,0.0005105,85]
[395362420,1764659954384,-3000.0,0.0005106,85]
[395362421,1764659954429,-3000.0,0.0005107,85]
[395362422,1764659954470,-3005.9228,0.0005108,85]
[395362423,1764659954514,-210.0,0.0005119,30]
[395362424,1764659954556,-5000.0,0.000512,120]
[395362425,1764659954599,-105382.68012798,0.0005144,30]
[395362426,1764659960390,-490.0,0.00023056,15]
[395362427,1764659960453,-1144.69,0.00032877,10]
[395362428,1764659960492,-1320.59927977,0.000332,117]
[395362429,1764659960531,-1320.59927977,0.000332,117]
[395362430,1764659960608,-25972.84854289,0.00041,120]
[395362431,1764659960648,-257.91778498,0.00049443,30]
[395362432,1764659960686,-267.46074303,0.00049443,30]
[395362433,1764659960722,-151.0,0.00049443,30]
[395362434,1764659960756,-151.0,0.00049443,30]
[395362435,1764659960791,-151.0,0.00049443,30]
[395362436,1764659960828,-233.75683713,0.00049443,30]
[395362437,1764659960868,-298.09863288,0.00049443,30]
[395362438,1764659960905,-277.35679052,0.00049443,30]
[395362439,1764659960940,-287.61899177,0.00049443,30]
[395362440,1764659961180,-298.26089446,0.00049443,30]
[395362441,1764659961235,-496979.76487202,0.0005144,30]
[395362442,1764659961271,-800.0,0.000515,120]
[395362443,1764659961306,-152.0,0.000515,120]
[395362444,1764659961342,-5181.86,0.00051506,120]
[395362445,1764659961378,-698.53,0.00051808,30]
[395362446,1764659961415,-800.0,0.000519,120]
[395362447,1764659961452,-50000.0,0.000519,120]
[395362448,1764659961489,-1000.0,0.00051999,120]
[395362449,1764659961525,-6000.0,0.00052,30]
[395362450,1764659961561,-150.0,0.00052,120]
[395362451,1764659961599,-300.0,0.00052,120]
[395362452,1764659961636,-800.0,0.00052,120]
[395362453,1764659961671,-131641.19812245,0.00052,120]
[395362454,1764659961708,-1000.0,0.00052054,120]
[395362455,1764659961745,-1000.0,0.00052054,120]
[395362456,1764659961781,-1000.0,0.00052054,120]
[395362457,1764659961818,-1000.0,0.00052054,120]
[395362458,1764659961861,-1000.0,0.00052054,120]
[395362459,1764659961900,-1000.0,0.00052054,120]
[395362460,1764659961941,-152.98770048,0.00052054,120]
[395362461,1764659961980,-1000.0,0.00052054,120]
[395362462,1764659962015,-1000.0,0.00052054,120]
[395362463,1764659962052,-1108.57709416,0.00052054,120]
[395362464,1764659962089,-5000.0,0.00052055,10]
[395362465,1764659962126,-813.79,0.00052093,30]
[395362466,1764659962163,-3775.44,0.00052093,30]
[395362467,1764659962199,-554.82,0.00052093,30]
[395362468,1764659962236,-3000.0,0.000522,120]
[395362469,1764659962274,-152.0,0.000522,120]
[395362470,1764659962311,-210.0,0.0005249,30]
[395362471,1764659962347,-800.0,0.000525,120]
[395362472,1764659962385,-5181.86,0.00052602,120]
[395362473,1764659962421,-206.0,0.0005266,88]
[395362474,1764659962459,-5000.0,0.000527,120]
[395362475,1764659962497,-698.53,0.00052712,30]
[395362476,1764659962536,-152.0,0.000528,120]
[395362477,1764659962575,-800.0,0.000529,120]
[395362478,1764659962613,-2000.0,0.000529,120]
[395362479,1764659962652,-800.0,0.00053,120]
[395362480,1764659962688,-300.0,0.00053,120]
[395362481,1764659962725,-1002.01,0.00053,120]
[395362482,1764659962761,-393.36547,0.00053,120]
[395362483,1764659962799,-5389.47226223,0.00053,120]
[395362484,1764659962840,-391.88229,0.00053,120]
[395362485,1764659962881,-387.0985,0.00053,120]
[395362486,1764659962919,-656.56826881,0.00053,120]
[395362487,1764659962957,-449.08842,0.00053,120]
[395362488,1764659962994,-421.45396,0.00053,120]
[395362489,1764659963032,-98895.44609,0.00053,120]
[395362490,1764659963070,-5000.0,0.000532,120]
[395362491,1764659963108,-3000.0,0.000532,120]
[395362492,1764659963147,-5000.0,0.00053425,10]
[395362493,1764659963186,-516310.6672,0.0005344,30]
[395362494,1764659963226,-63424.4249965,0.00053495,120]
[395362495,1764659963264,-879.18967606,0.000535,120]
[395362496,1764659963304,-800.0,0.000535,120]
[395362497,1764659963345,-152.0,0.000535,120]
[395362498,1764659963386,-698.53,0.00053616,30]
[395362499,1764659963428,-5181.86,0.00053698,120]
[395362500,1764659963467,-5000.0,0.000537,120]
[395362501,1764659963505,-210.0,0.0005379,30]
[395362502,1764659963543,-761.0,0.0005381,10]
[395362503,1764659963581,-761.0,0.0005381,10]
[395362504,1764659963618,-761.0,0.0005381,10]
[395362505,1764659963656,-761.0,0.0005381,10]
[395362506,1764659963695,-761.0,0.0005381,10]
[395362507,1764659963731,-761.0,0.0005381,10]
[395362508,1764659963768,-761.0,0.0005381,10]
[395362509,1764659963806,-761.0,0.0005381,10]
[395362510,1764659963844,-761.0,0.0005381,10]
[395362511,1764659963882,-761.0,0.0005381,10]
[395362512,1764659963919,-761.0,0.0005381,10]
[395362513,1764659963954,-761.0,0.0005381,10]
[395362514,1764659963991,-761.0,0.0005381,10]
[395362515,1764659964028,-761.0,0.0005381,10]
[395362516,1764659964064,-761.0,0.0005381,10]
[395362517,1764659964101,-761.0,0.0005381,10]
[395362518,1764659964139,-761.0,0.0005381,10]
[395362519,1764659964176,-761.0,0.0005381,10]
[395362520,1764659964214,-761.0,0.0005381,10]
[395362521,1764659964251,-761.0,0.0005381,10]
[395362522,1764659964287,-761.0,0.0005381,10]
[395362523,1764659964325,-761.0,0.0005381,10]
[395362524,1764659964361,-761.0,0.0005381,10]
[395362525,1764659964397,-778.70412487,0.0005381,10]
[395362526,1764659964432,-151.0,0.0005381,10]
[395362527,1764659964467,-151.0,0.0005381,10]
[395362528,1764659964504,-151.0,0.0005381,10]
[395362529,1764659964539,-194.31378382,0.0005381,10]
[395362530,1764659964575,-151.0,0.0005381,10]
[395362531,1764659964614,-151.0,0.0005381,10]
[395362532,1764659964651,-151.0,0.0005381,10]
[395362533,1764659964688,-240.20568405,0.0005381,10]
[395362534,1764659964723,-2633.0,0.0005381,120]
[395362535,1764659964760,-2633.0,0.0005381,120]
[395362536,1764659964796,-2633.0,0.0005381,120]
[395362537,1764659964835,-2633.0,0.0005381,120]
[395362538,1764659964873,-2633.0,0.0005381,120]
[395362539,1764659964910,-2633.0,0.0005381,120]
[395362540,1764659964945,-2633.0,0.0005381,120]
[395362541,1764659965088,-2633.0,0.0005381,120]
[395362542,1764659965125,-2633.0,0.0005381,120]
[395362543,1764659965164,-2633.0,0.0005381,120]
[395362544,1764659965202,-2633.0,0.0005381,120]
[395362545,1764659965239,-2633.0,0.0005381,120]
[395362546,1764659965276,-2633.0,0.0005381,120]
[395362547,1764659965312,-2633.0,0.0005381,120]
[395362548,1764659965347,-2633.0,0.0005381,120]
[395362549,1764659965383,-2633.0,0.0005381,120]
[395362550,1764659965420,-2633.0,0.0005381,120]
[395362551,1764659965457,-2633.0,0.0005381,120]
[395362552,1764659965493,-2633.0,0.0005381,120]
[395362553,1764659965531,-2633.0,0.0005381,120]
[395362554,1764659965568,-2633.0,0.0005381,120]
[395362555,1764659965606,-2633.0,0.0005381,120]
[395362556,1764659965642,-2633.0,0.0005381,120]
[395362557,1764659965681,-2648.34293433,0.0005381,120]
[395362558,1764659965719,-500.0,0.0005381,10]
[395362559,1764659965756,-500.86558689,0.0005381,10]
[395362560,1764659965792,-152.32685488,0.0005381,10]
[395362561,1764659965827,-500.0,0.0005381,10]
[395362562,1764659965870,-500.0,0.0005381,10]
[395362563,1764659965908,-500.0,0.0005381,10]
[395362564,1764659965944,-500.0,0.0005381,10]
[395362565,1764659965979,-500.0,0.0005381,10]
[395362566,1764659966014,-500.0,0.0005381,10]
[395362567,1764659966049,-500.0,0.0005381,10]
[395362568,1764659966087,-500.0,0.0005381,10]
[395362569,1764659966124,-500.0,0.0005381,10]
[395362570,1764659966165,-500.0,0.0005381,10]
[395362571,1764659966200,-500.0,0.0005381,10]
[395362572,1764659966235,-500.0,0.0005381,10]
[395362573,1764659966270,-500.0,0.0005381,10]
[395362574,1764659966306,-500.0,0.0005381,10]
[395362575,1764659966342,-500.0,0.0005381,10]
[395362576,1764659966378,-500.0,0.0005381,10]
[395362577,1764659966414,-500.0,0.0005381,10]
[395362578,1764659966451,-469.07876948,0.0005381,10]
[395362579,1764659966488,-22977.04235843,0.00053864,120]
[395362580,1764659966524,-112784.39806185,0.0005388,30]
[395362581,1764659966562,-10000.0,0.0005388,120]
[395362582,1764659966599,-800.0,0.000539,120]
[395362583,1764659966637,-1000.0,0.00053999,120]
[395362584,1764659966674,-687.61097604,0.00054,120]
[395362585,1764659966712,-2417.84225582,0.00054,120]
[395362586,1764659966747,-51968.714529,0.00054,120]
[395362587,1764659966784,-200.0,0.00054,120]
[395362588,1764659966820,-800.0,0.00054,120]
[395362589,1764659966860,-266.98281447,0.00054,120]
[395362590,1764659966897,-266.68946203,0.00054,120]
[395362591,1764659966934,-151.00547877,0.00054,120]
[395362592,1764659966969,-268.24209027,0.00054,120]
[395362593,1764659967005,-471.87,0.00054,30]
[395362594,1764659967041,-152.0,0.000541,120]
[395362595,1764659967077,-18340.52696316,0.000542,120]
[395362596,1764659967114,-3000.0,0.000542,120]
[395362597,1764659967150,-200.0,0.00054358,120]
[395362598,1764659967187,-200.0,0.00054358,120]
[395362599,1764659967223,-200.0,0.00054358,120]
[395362600,1764659967258,-200.0,0.00054358,120]
[395362601,1764659967294,-200.0,0.00054358,120]
[395362602,1764659967331,-200.0,0.00054358,120]
[395362603,1764659967368,-1000.0,0.00054443,120]
[395362604,1764659967406,-1198820.61457193,0.00054444,30]
[395362605,1764659974878,3360.99066762,0.000201,120]
[395362606,1764659977914,-468.283,0.00023056,15]
[395362607,1764659977979,-151.0,0.00032,31]
[395362608,1764659978015,-151.0,0.00032,31]
[395362609,1764659978057,-953.91,0.00032877,10]
[395362610,1764659978095,-794.92,0.00032877,10]
[395362611,1764659978135,-1320.59927977,0.000332,117]
[395362612,1764659978172,-1320.59927977,0.000332,117]
[395362613,1764659978212,-151.0,0.00036133,31]
[395362614,1764659978249,-234.018737,0.00036133,31]
[395362615,1764659978325,-151.0,0.00037444,31]
[395362616,1764659978367,-309.29654756,0.00049443,30]
[395362617,1764659978406,-320.74051982,0.00049443,30]
[395362618,1764659978445,-332.60791905,0.00049443,30]
[395362619,1764659978484,-344.91441206,0.00049443,30]
[395362620,1764659978523,-357.6762453,0.00049443,30]
[395362621,1764659978561,-370.91026638,0.00049443,30]
[395362622,1764659978600,-384.63394623,0.00049443,30]
[395362623,1764659978639,-398.86540225,0.00049443,30]
[395362624,1764659978679,-802.40921481,0.00051789,30]
[395362625,1764659978719,-1963573.95182807,0.00054444,30]
[395362626,1764659978758,-1281.64200316,0.00054497,85]
[395362627,1764659978796,-800.0,0.000545,120]
[395362628,1764659978837,-698.53,0.0005452,30]
[395362629,1764659978877,-5000.0,0.00054658,10]
[395362630,1764659978957,10311.84464,0.00054658,10]
[395362631,1764659979430,449.4,0.00023056,15]
[395362632,1764659985763,201.28670409,0.00047475,120]
[395362633,1764659986558,1506.96806112,0.00049004,15]
[395362634,1764659987547,662.43,0.00032877,10]
[395362635,1764660080658,3661.58198071,0.0001098,3]
[395362653,1764660542521,250.0,0.0002,30]
[395362676,1764660631978,-275.94766099,8.753e-05,2]
[395362677,1764660631987,-34.26913558,8.841e-05,2]
[395362678,1764660631998,-241.67852541,8.841e-05,2]
[395362679,1764660632007,-275.94766099,9.111e-05,2]
[395362680,1764660632016,-357.01199767,9.49e-05,2]
[395362696,1764660638019,-521.37153654,9.851e-05,2]
[395362697,1764660638121,-230.53069477,9.851e-05,2]
[395362698,1764660638134,-342.92427841,9.951e-05,2]
[395362699,1764660638147,-208.38634456,9.951e-05,2]
[395362700,1764660638161,-78.63038336,9.951e-05,2]
[395362701,1764660638174,-500.0,9.951e-05,2]
[395362702,1764660638187,-500.0,9.951e-05,2]
[395362703,1764660638203,-37.82220928,9.951e-05,2]
[395362704,1764660638218,-462.63464792,9.951e-05,2]
[395362705,1764660638229,-218.19322821,9.951e-05,2]
[395362706,1764660638246,-281.80677179,9.951e-05,2]
[395362707,1764660638258,-235.08438175,9.951e-05,2]
[395362708,1764660638269,-500.0,9.951e-05,2]
[395362709,1764660638280,-500.0,9.951e-05,2]
[395362710,1764660638293,-500.0,9.951e-05,2]
[395362711,1764660638308,-500.0,9.951e-05,2]
[395362712,1764660638320,-500.0,9.951e-05,2]
[395362713,1764660638332,-234.10884646,9.951e-05,2]
[395362726,1764660643161,-265.89115354,9.951e-05,2]
[395362727,1764660643173,-31.36975672,9.951e-05,2]
[395362728,1764660643186,-306.713458,9.951e-05,2]
[395362729,1764660643366,-161.91678528,9.951e-05,2]
[395362730,1764660643378,-402.57270336,9.951e-05,2]
[395362731,1764660643389,-500.0,9.951e-05,2]
[395362732,1764660643399,-500.0,9.951e-05,2]
[395362733,1764660643410,-500.0,9.951e-05,2]
[395362734,1764660643421,-500.0,9.951e-05,2]
[395362735,1764660643432,-500.0,9.951e-05,2]
[395362736,1764660643443,-500.0,9.951e-05,2]
[395362737,1764660643454,-500.0,9.951e-05,2]
[395362738,1764660643464,-500.0,9.951e-05,2]
[395362739,1764660643705,-500.0,9.951e-05,2]
[395362740,1764660643722,-493.01059835,9.951e-05,2]
[395362741,1764660643742,-6.98940165,9.951e-05,2]
[395362742,1764660643761,-330.29331714,9.951e-05,2]
[395362743,1764660643770,-500.0,9.951e-05,2]
[395362744,1764660643779,-500.0,9.951e-05,2]
[395362745,1764660643788,-500.0,9.951e-05,2]
[395362746,1764660643797,-500.0,9.951e-05,2]
[395362747,1764660643806,-500.0,9.951e-05,2]
[395362748,1764660643815,-394.0,9.951e-05,2]
[395362749,1764660643824,-220.0,9.951e-05,2]
[395362750,1764660643833,-300.0,9.951e-05,2]
[395362751,1764660643843,-192.0,9.951e-05,2]
[395362752,1764660643852,-300.0,9.951e-05,2]
[395362753,1764660643862,-138.25651166,9.951e-05,2]
[395362754,1764660643875,-272.83182917,9.951e-05,2]
[395362758,1764660646437,-788.91165917,9.951e-05,2]
[395362759,1764660646446,-623.04191272,9.952e-05,2]
[395362760,1764660646458,-6819.82853388,9.952e-05,2]
[395362761,1764660646468,-182.7782618,9.952e-05,2]
[395362762,1764660646478,-6591.23831783,9.953e-05,2]
[395362764,1764661076885,151.0,0.000201,120]
[395362765,1764661257226,160.577,0.0002,30]
[395362766,1764661443053,250.0,0.0002,30]
[395362822,1764661832252,-184.08770986,8.93e-05,2]
[395362823,1764661832262,-184.08770986,9.111e-05,2]
[395362824,1764661832272,-300.0,9.548e-05,2]
[395362825,1764661832281,-300.0,9.548e-05,2]
[395362826,1764661832291,-1200.0,9.548e-05,2]
[395362827,1764661832301,-220.28506067,9.549e-05,2]
[395362828,1764661832310,-881.14024268,9.549e-05,2]
[395362829,1764661832320,-1982.56554602,9.549e-05,2]
[395362830,1764661832330,-3524.5609707,9.549e-05,2]